Cogmind - Beta 15 @@@ ROGUE MODE // 2025.07.16 @ 06:57:59 Player: Carpathian Result: Self-destructed Performance ------------- Evolutions (3) 1500 Regions Visited (5) 1000 Robots Destroyed (50) 250 Value Destroyed (1516) 1516 Prototype IDs (1) 20 Alien Tech Used (0) 0 Bonus (72) 72 TOTAL SCORE: 4358 Bonus ------- Follower Combat Kills 72 Cogmind --------- Core Integrity 496/700 Matter 238/300 Energy 17/100 System Corruption 1% Temperature Cool (0) Movement Core (400) Ox7 Location -7/Lower Caves Parts ------- > --- POWER (1) -------- (None) > --- PROPULSION (2) --- (None) > --- UTILITY (8) ------ Large Storage Unit Advanced Visual Processing Unit Advanced Targeting Computer > --- WEAPON (2) ------- Pulse Rifle > --- INVENTORY (15) --- Cryofiber Web Huge Storage Unit Long-range Terrain Scanner Improved Terrain Scan Processor Improved Targeting Computer Advanced Targeting Computer Improved Force Field Hacking Suite Beam Rifle Plasma Cannon Autogun Peak State ------------ > --- POWER ------------ Light Angular Momentum Engine > --- PROPULSION ------- Light Treads Medium Treads > --- UTILITY ---------- Large Storage Unit Advanced Visual Processing Unit Advanced Targeting Computer Layered Medium Armor Plating > --- WEAPON ----------- Pulse Rifle Plasma Cannon > --- INVENTORY -------- Cryofiber Web Huge Storage Unit Long-range Terrain Scanner Improved Terrain Scan Processor Improved Targeting Computer Advanced Targeting Computer Improved Force Field Hacking Suite Beam Rifle Autogun Advanced EMP Blaster [Rating: 32] Favorites ----------- Power Improved Ion Engine Engine Improved Ion Engine Propulsion Light Treads Treads Light Treads Leg Aluminum Leg Utility Advanced Visual Processing Unit Storage Large Storage Unit Processor Advanced Visual Processing Unit Protection Improved Weapon Shielding Weapon Plasma Cannon Energy Gun Pulse Rifle Energy Cannon Plasma Cannon Ballistic Gun Autogun Launcher Advanced EMP Blaster Build | -11 -10 -9 -8 -7 -7 ------- Run | Yrd Mat Mat Mat Fac Low Slots Evolved 6 | . . 2 2 2 . Power . | . . . . . . Propulsion . | . . . . . . Utility 6 | . . 2 2 2 . Weapon . | . . . . . . Parts Attached 39 | 6 1 9 14 4 5 Power 8 | 1 . 1 4 1 1 Engine 8 | 1 . 1 4 1 1 Core . | . . . . . . Reactor . | . . . . . . Propulsion 12 | 2 . 4 3 2 1 Treads 6 | 2 . . 1 2 1 Leg 6 | . . 4 2 . . Wheel . | . . . . . . Hover . | . . . . . . Flight . | . . . . . . Utility 7 | 1 1 1 3 . 1 Device . | . . . . . . Storage 2 | 1 . . 1 . . Processor 3 | . 1 1 1 . . Hackware . | . . . . . . Protection 2 | . . . 1 . 1 Artifact . | . . . . . . Weapon 12 | 2 . 3 4 1 2 Energy Gun 4 | . . 2 1 . 1 Energy Cannon 2 | . . . 2 . . Ballistic Gun 5 | 2 . 1 . 1 1 Ballistic Cannon . | . . . . . . Launcher 1 | . . . 1 . . Special Weapon . | . . . . . . Impact Weapon . | . . . . . . Slashing Weapon . | . . . . . . Piercing Weapon . | . . . . . . Special Melee Weapon . | . . . . . . Unidentified Prototypes 1 | . . . 1 . . Parts Lost 11 | . . . 4 2 5 Power 4 | . . . 2 . 2 Propulsion 5 | . . . 2 1 2 Utility 2 | . . . . 1 1 Weapon . | . . . . . . Highest Loss Streak 3 | . . . 2 2 3 To Critical Strikes . | . . . . . . Average Backups 8 | 2 4 4 6 10 12 Power 1 | . 1 1 1 1 . Propulsion . | . 2 1 . 1 . Utility 3 | . . . 2 4 8 Weapon 2 | . 1 1 1 3 3 Tool/Special . | . . . . . . Unused Backups 12 | . . . 1 1 10 Power . | . . . . . . Propulsion 1 | . . . . . 1 Utility 9 | . . . . 1 8 Weapon 2 | . . . 1 . 1 Tool/Special . | . . . . . . Average Slot Usage (%) 69 | . 96 79 67 63 64 Engine 8 | . 14 11 8 7 6 Treads 8 | . 28 6 4 4 13 Leg 6 | . . 15 6 8 . Storage 8 | . 14 11 9 7 7 Processor 14 | . 11 13 16 15 15 Protection 3 | . . . 4 3 5 Energy Gun 3 | . . 8 3 . 6 Energy Cannon 7 | . . . 12 11 4 Ballistic Gun 6 | . 28 13 2 3 2 Peak Build Rating 32 | 6 7 13 25 25 32 Average Rating 18 | 4 6 9 18 22 26 On Entrance 11 | . 6 7 13 25 19 Naked Turns . | . . . . . . Heaviest Build 45 | 11 11 16 42 42 45 Greatest Support 48 | 40 40 40 25 40 48 Greatest Overweight (x) 12 | 2 . . 5 2 12 Average Overweight (x) . | . . . 1 1 . Largest Inventory Capacity 15 | 8 8 8 15 15 15 Average Capacity 11 | 7 8 8 10 15 15 Most Carried 15 | 4 5 7 11 12 15 Average Carried 8 | 2 4 4 6 10 12 Final Capacity 15 | 8 8 8 15 15 15 Final Carried 11 | 4 4 7 11 10 11 Class Distribution -------------------- 78% | Mutant 21% | Scavenger-Mutant Dominant Class ---------------- Mutant | -10/Materials Mutant | -9/Materials Mutant | -8/Materials Mutant | -7/Factory Mutant | -7/Lower Caves Resources | -11 -10 -9 -8 -7 -7 ----------- Run | Yrd Mat Mat Mat Fac Low Matter Collected 978 | 194 39 280 297 20 148 Remotely . | . . . . . . Salvage Created 1886 | . 49 469 768 145 455 Parts 100 | . 6 30 40 6 18 Haulers Intercepted 1 | . . . . . 1 Recyclers Shooed . | . . . . . . Parts Field Recycled . | . . . . . . Retrieved Matter . | . . . . . . Parts Self-Destructed 21 | . . . . . 21 Prevented . | . . . . . . Kills | -11 -10 -9 -8 -7 -7 ------- Run | Yrd Mat Mat Mat Fac Low Combat Hostiles Destroyed 43 | . 3 13 14 4 9 Guns 28 | . 3 13 6 . 6 Cannons 13 | . . . 7 4 2 Classes Destroyed 9 | . 1 2 4 . 2 Worker 3 | . . . 3 . . Tunneler 1 | . . . 1 . . Hauler 1 | . . . . . 1 Recycler 1 | . . . 1 . . Operator 1 | . . . 1 . . Swarmer 16 | . 3 4 3 3 3 Grunt 16 | . . 7 6 . 3 Sentry 9 | . . 2 5 1 1 Hunter 2 | . . . . . 2 Best Kill Streak 4 | . 3 4 4 3 4 Combat Bots Only 4 | . 3 4 2 3 3 Max Kills in Single Turn 1 | . 1 1 1 1 1 Gunslinging . | . . . . . . Exploded . | . . . . . . Melee . | . . . . . . Uniques/NPCs Destroyed . | . . . . . . Combat | -11 -10 -9 -8 -7 -7 -------- Run | Yrd Mat Mat Mat Fac Low Hostile Shots Fired 332 | . 7 71 85 49 120 Missed 95 | . 1 19 20 17 38 Hits 237 | . 6 52 65 32 82 Melee 2 | . . . . . 2 Projectile 235 | . 6 52 65 32 80 Critical Strikes 5 | . . 1 1 . 3 Actively Blocked 1 | . . . 1 . . Damage Taken 2912 | . 44 580 851 316 1121 Core 530 | . . 123 203 57 147 Absorbed by Shields . | . . . . . . Redirected to Shielding 107 | . . . 64 43 . Core Remaining (%) 83 | 100 100 69 63 . . Volleys Fired 173 | . 4 40 64 15 50 Largest 2 | . 2 2 2 1 2 Hottest 143 | . 40 79 140 80 143 Shots Fired 285 | . 8 80 104 15 78 Gun 218 | . 8 80 75 . 55 Cannon 65 | . . . 29 15 21 Launcher 2 | . . . . . 2 Special . | . . . . . . Kinetic 131 | . 8 51 37 . 35 Thermal 152 | . . 29 67 15 41 Explosive . | . . . . . . Electromagnetic 2 | . . . . . 2 Robot Hit Streak 11 | . 6 8 8 6 11 Robot Miss Streak 3 | . . 2 3 1 3 Penetration Max . | . . . . . . Secondary Targets 5 | . 1 2 2 . . Max Gunslinging Chain 1 | . 1 1 1 . . Shots Hit Robots 198 | . 6 49 76 12 55 Core Hits 74 | . 3 20 27 5 19 Critical Kills 2 | . . . 2 . . Critical Parts Destroyed . | . . . . . . Critical Strikes 6 | . . 2 3 . 1 Burn 4 | . . 2 1 . 1 Meltdown 2 | . . . 2 . . Melee Attacks . | . . . . . . Impact . | . . . . . . Slashing . | . . . . . . Piercing . | . . . . . . Sneak Attacks . | . . . . . . Combat Hostiles . | . . . . . . Follow-up Attacks . | . . . . . . Damage Inflicted 3510 | . 72 634 1414 305 1085 Guns 2142 | . 72 634 830 . 606 Cannons 1255 | . . . 584 305 366 Explosions 113 | . . . . . 113 Melee . | . . . . . . Ramming . | . . . . . . Kinetic 1144 | . 72 356 368 . 348 Thermal 2253 | . . 278 1046 305 624 Explosive . | . . . . . . Electromagnetic 113 | . . . . . 113 Impact . | . . . . . . Slashing . | . . . . . . Piercing . | . . . . . . Highest Corruption 1 | . . . . . 1 Average Corruption 1 | . . . . . 1 Corruption Purged . | . . . . . . Corruption Blocked . | . . . . . . Overload Shots . | . . . . . . Overflow Damage 15 | . . . . . 15 Projectiles 2 | . . . . . 2 Explosions 13 | . . . . . 13 Melee . | . . . . . . Knockbacks . | . . . . . . Impact . | . . . . . . Kinetic . | . . . . . . Secondary . | . . . . . . Self-Inflicted Damage 18 | . . . . . 18 Shots 1 | . . . . . 1 Rammed . | . . . . . . Targets Rammed . | . . . . . . Kicked . | . . . . . . Crushed . | . . . . . . Highest Temperature 429 | . . 258 429 216 285 Average Temperature 99 | . . 81 120 107 79 Received Heat Transfer 663 | . . 240 315 54 54 Effects 5 | . . . 5 . . Shutdowns 1 | . . . 1 . . Short Circuit 1 | . . . 1 . . Damage (major) 3 | . . . 3 . . Siege Activations . | . . . . . . Martial Activations . | . . . . . . Shielding Activations . | . . . . . . Robots Disrupted . | . . . . . . Combat Hostiles . | . . . . . . Robots Corrupted . | . . . . . . Combat Hostiles . | . . . . . . Parts Fried . | . . . . . . Impact Corruptions . | . . . . . . Robots Melted 3 | . . . 2 . 1 Combat Hostiles 2 | . . . 1 . 1 Parts Melted 14 | . . 1 10 1 2 Heat Transferred 5112 | . . 888 2295 600 1329 Parts Sabotaged . | . . . . . . Parts Stolen . | . . . . . . Parts Stripped . | . . . . . . Power Chain Reactions . | . . . . . . Alert | -11 -10 -9 -8 -7 -7 ------- Run | Yrd Mat Mat Mat Fac Low Maximum Alert Level . | . . . . . . Low Security (%) 100 | 100 100 100 100 100 . Level 1 . | . . . . . . Level 2 . | . . . . . . Level 3 . | . . . . . . Level 4 . | . . . . . . Level 5 . | . . . . . . High Security . | . . . . . . Max Security . | . . . . . . Peak Influence 118 | . 70 118 111 65 . Initial 49 | . . 8 49 24 . Average 37 | . 17 71 46 9 . Influence Increases 1252 | . 70 342 456 115 269 Destroy 0b10 Robot/C 900 | . 60 260 280 80 220 Destroy 0b10 Robot/NC 35 | . . . 30 . 5 Destroy Leader 190 | . 10 50 80 20 30 Allied During Kill 14 | . . . . . 14 Successful Hack 2 | . . 2 . . . Disable Machine 15 | . . . 15 . . Destroy Structure 6 | . . . 6 . . Lose Combat Pursuer 90 | . . 30 45 15 . Influence Decreases 1252 | . 50 244 520 169 269 Entered New Map 111 | . . 12 69 30 . Time Decay 1032 | . 50 232 411 129 210 Lost Part 50 | . . . 40 10 . Lost Ally 59 | . . . . . 59 Squads Dispatched 3 | . . 2 1 . . Investigation 1 | . . 1 . . . Extermination . | . . . . . . Reinforcement 2 | . . 1 1 . . Assault . | . . . . . . Garrison . | . . . . . . Intercept . | . . . . . . Searches Triggered . | . . . . . . Construction Impeded . | . . . . . . Haulers Reinforced . | . . . . . . Active Scanning Responses . | . . . . . . Cargo Convoy Interrupts . | . . . . . . Stealth | -11 -10 -9 -8 -7 -7 --------- Run | Yrd Mat Mat Mat Fac Low Distress Signals 3 | . . . 3 . . Communications Jammed . | . . . . . . Distress Signals . | . . . . . . Times Spotted 62 | . 3 16 23 6 14 Peak Tracking Total 6 | . 2 6 4 3 5 Tactical Retreats 4 | . . 1 2 1 . Traps | -11 -10 -9 -8 -7 -7 ------- Run | Yrd Mat Mat Mat Fac Low Traps Triggered 1 | . . 1 . . . Indirectly . | . . . . . . Trap Hack Attempts . | . . . . . . Triggered . | . . . . . . Disarmed . | . . . . . . Reprogrammed . | . . . . . . Reused . | . . . . . . Traps Extracted . | . . . . . . Installed . | . . . . . . Triggered . | . . . . . . Machines | -11 -10 -9 -8 -7 -7 ---------- Run | Yrd Mat Mat Mat Fac Low Machines Disabled 1 | . . . 1 . . Max in Single Turn 1 | . . . 1 . . Machines Repaired . | . . . . . . Machines Dismantled . | . . . . . . Machines Sabotaged . | . . . . . . Overloaded Fab Kills . | . . . . . . Hacking | -11 -10 -9 -8 -7 -7 --------- Run | Yrd Mat Mat Mat Fac Low Machines Accessed 7 | . 2 3 1 1 . Terminals 6 | . 2 3 1 . . Fabricators 1 | . . . . 1 . Repair Stations . | . . . . . . Recycling Units . | . . . . . . Scanalyzers . | . . . . . . Garrison Access . | . . . . . . Total Hacks 10 | . 3 5 1 1 . Successful 7 | . 1 4 1 1 . Failed 3 | . 2 1 . . . Catastrophic . | . . . . . . Database Lockouts . | . . . . . . Manual . | . . . . . . Terminals 9 | . 3 5 1 . . Fabricators 1 | . . . . 1 . Repair Stations . | . . . . . . Recycling Units . | . . . . . . Scanalyzers . | . . . . . . Garrison Access . | . . . . . . Terminal Hacks 6 | . 1 4 1 . . Record 5 | . 1 4 . . . Locate Traps 1 | . . . 1 . . Fabricator Hacks 1 | . . . . 1 . Build 1 | . . . . 1 . Repair Station Hacks . | . . . . . . Recycling Unit Hacks . | . . . . . . Scanalyzer . | . . . . . . Garrison Access Hacks . | . . . . . . Unauthorized Hacks . | . . . . . . Terminals . | . . . . . . Fabricators . | . . . . . . Repair Stations . | . . . . . . Recycling Units . | . . . . . . Scanalyzers . | . . . . . . Garrison Access . | . . . . . . Data Cores Recovered 1 | . . . 1 . . Used 1 | . . . 1 . . Hacking Detections 2 | . 1 1 . . . Full Trace Events . | . . . . . . Feedback Events . | . . . . . . Feedback Blocked . | . . . . . . Robot Schematics Acquired . | . . . . . . Robots Built 4 | . . . . 4 . Authchips . | . . . . . . Time 134 | . . . . 134 . Total Robot Build Rating 16 | . . . . 16 . Part Schematics Acquired . | . . . . . . Parts Built . | . . . . . . Authchips . | . . . . . . Time . | . . . . . . Total Part Build Rating . | . . . . . . Parts Repaired . | . . . . . . Time . | . . . . . . Parts Recycled . | . . . . . . Recycled Matter . | . . . . . . Retrieved Matter . | . . . . . . Retrieved Components . | . . . . . . Parts Scanalyzed . | . . . . . . Part Schematics Acquired . | . . . . . . Parts Damaged . | . . . . . . Bothacking | -11 -10 -9 -8 -7 -7 ------------ Run | Yrd Mat Mat Mat Fac Low Used RIF Installer . | . . . . . . Robots Hacked . | . . . . . . Non-combat . | . . . . . . Combat . | . . . . . . Robot Hacks Applied . | . . . . . . Relay Couplers Released . | . . . . . . Fabnet Peak Effective % . | . . . . . . Robots Rewired . | . . . . . . Allies Hacked . | . . . . . . Hacks Repelled . | . . . . . . Allies | -11 -10 -9 -8 -7 -7 -------- Run | Yrd Mat Mat Mat Fac Low Total Allies 4 | . . . . 4 . Largest Group 4 | . . . . 4 4 Highest-Rated Group 48 | . . . . 48 48 Highest-Rated Ally 12 | . . . . 12 12 Total Orders . | . . . . . . Ally Attacks 30 | . . . . . 30 Total Damage 325 | . . . . . 325 Kills 2 | . . . . . 2 Allies Corrupted . | . . . . . . Allies Melted . | . . . . . . Intel | -11 -10 -9 -8 -7 -7 ------- Run | Yrd Mat Mat Mat Fac Low Active Infowar (turns) 2941 | . . 152 1080 745 964 Optics 2941 | . . 152 1080 745 964 Robot Analysis Total . | . . . . . . Derelict Logs Recovered 1 | . . . . . 1 Drone Launches . | . . . . . . Drone Recoveries . | . . . . . . Exploration | -11 -10 -9 -8 -7 -7 ------------- Run | Yrd Mat Mat Mat Fac Low Turns Passed 3745 | 116 265 575 1080 745 964 Spaces Moved 1560 | 64 126 286 368 268 448 Core 77 | 17 . . 47 . 13 Treads 850 | 47 126 55 134 53 435 Legs 633 | . . 231 187 215 . Wheels . | . . . . . . Hover . | . . . . . . Flight . | . . . . . . Fastest Speed 50 | 50 160 120 120 160 160 Average Speed 172 | 151 160 127 194 197 172 Slowest Speed 650 | 160 160 160 300 260 650 Overloaded Moves . | . . . . . . Propulsion Burnouts . | . . . . . . Robots Hopped . | . . . . . . Potential Cave-ins . | . . . . . . Cave-ins Triggered . | . . . . . . Exploration Rate (%) 25 | 5 18 22 36 6 68 Regions Visited 5 Branch Regions 1 Pre-discovered Areas 1 | . . . . . 1 Known Exits Taken . | . . . . . . Unknown Exits Taken 5 | 1 1 1 1 1 . Scrap Searched 2 | . . . . . 2 Spaces Dug . | . . . . . . Terrain Destroyed 6 | . . . 4 . 2 Melee . | . . . . . . Projectile 6 | . . . 4 . 2 AOE . | . . . . . . Terrain Rammed . | . . . . . . Walls Destroyed . | . . . . . . Machines Disabled . | . . . . . . Actions | -11 -10 -9 -8 -7 -7 --------- Run | Yrd Mat Mat Mat Fac Low Total 2361 | 83 182 424 638 469 565 Wait 515 | 4 51 70 163 175 52 Move 1555 | 63 125 285 367 267 448 Hop . | . . . . . . Pick Up 52 | 10 1 12 19 4 6 Fast Attach . | . . . . . . Attach 18 | 6 1 1 6 2 2 Detach . | . . . . . . Swap 23 | . . 8 9 2 4 Drop 25 | . . 8 10 4 3 Fire 173 | . 4 40 64 15 50 Melee . | . . . . . . Ram . | . . . . . . Kick . | . . . . . . Crush . | . . . . . . Escape Stasis . | . . . . . . Rewire . | . . . . . . Trap . | . . . . . . Miscellaneous . | . . . . . . Route ------- -11/Scrapyard -10/Materials -9/Materials -8/Materials -7/Factory -7/Lower Caves History --------- Turn | Location | Event 19 | -11/Scrapyard | Discovered new exit (range 16) 117 | -11/Scrapyard | Entered Materials 303 | -10/Materials | Build established: Mutant 359 | -10/Materials | Discovered new exit (range 12) 382 | -10/Materials | Entered another Materials area 382 | -9/Materials | Evolved 2 slots: Utility x2 870 | -9/Materials | Discovered new exit (range 12) 957 | -9/Materials | Entered another Materials area 957 | -8/Materials | Evolved 2 slots: Utility x2 2020 | -8/Materials | Discovered new exit (range 8) 2037 | -8/Materials | Entered Factory 2037 | -7/Factory | Evolved 2 slots: Utility x2 2731 | -7/Factory | Fabricated S-27 Virus (x4) 2768 | -7/Factory | Discovered new exit (range 6) 2782 | -7/Factory | Entered Lower Caves 2782 | -7/Lower Caves | Accompanied by 4 allies 2828 | -7/Lower Caves | Lost 3 allies 2837 | -7/Lower Caves | Build established: Scavenger-Mutant 3201 | -7/Lower Caves | Build established: Mutant 3297 | -7/Lower Caves | Encountered a Warlord checkpoint 3318 | -7/Lower Caves | Attracted the attention of an 0b10 checkpoint 3535 | -7/Lower Caves | Learned location of Extension (-6) 3680 | -7/Lower Caves | Lost 3 parts (1p2n) 3746 | -7/Lower Caves | Self-destructed Last Messages --------------- 03468_ S-27 Virus destroyed. 03476_ Acquired 25 matter. 03535_ Acquired derelict log, extracted data. World map updated: -6/Extension. 03638_ Penetrated by Slug. 03641_ Lgt. Angular Momentum Engine destroyed. 03644_ Penetrated by Slug. 03644_ Lgt. Treads destroyed. 03649_ Penetrated by Slug. 03649_ Med. Treads destroyed. 03652_ Penetrated by Slug. 03655_ Slug penetrates Wall. 03657_ Carbon-fiber Leg melted. 03657_ H-55 Commando destroyed. 03677_ Acquired 41 matter. 03727_ Destroyed Imp. Melee Analysis Suite. 03736_ G-47 Trooper IFF system glitched. 03743_ Lyr. Medium Armor Plating destroyed. 03743_ Destroyed Lyr. Medium Armor Plating. 03744_ Adv. EMP Blaster severed. Map ----- +----------------------------------------------------+ | ?????????????????????????????????????????????????? | | ?????????????????????????????????????????????????? | | ?????????????????????????????????????????????????? | | ?????????????????????????????????????????????????? | | ?????????????????????????????????????????????????? | | ??????????????????????? ???????????????????????? | | ??????????????????????? ??????#????????????????? | | ?????????????????????? ?????? ##??????????????? | | ??????????????????????? ?????? #??????????????? | | ???????????????????????? #????? #?????????????# | | ???????????????????????? ##??? #????????????# | | ????????????????????????? ##?? ###?????????# | | ?????????????????????????# ##? ????????? | | ????????????????????????## ## ???????# ? | | ???????????????????????## ???????? ?? | | ???????????????????????# g g ??????????## ??? | | ???????????????????????# ????????????#???? | | ??????????????????????## #????????????????? | | ??????????????????????# #????????????????? | | ???????????????????????# #?######?????????? | | ???????????????????????# ### #?????????? | | ???????????????????????# ## #??????????? | | ????????????????????????# #?????#????# | | ??????????????????????### #???? ##???# | | ?????????????????????## l ## ##?? ##### | | ?????????????????????# @######### ### ## | | ?????????????? #??????## | | ?????????????## #?###### | | ??????????????## #### ### ## | | ???????????????## #??# #???##???? | | ????????????????## ###???# #????????? | | ?????????????????# ??????### ##???????? | | ?????????????????## ?????????# ######### | | ??????????????????#??????????# | | ?????????????????????????????## | | ??????????????????????????????#### ## ####### | | ?????????????????????????????????###########?????? | | ?????????????????????????????????????????????????? | | ?????????????????????????????????????????????????? | | ?????????????????????????????????????????????????? | | ?????????????????????????????????????????????????? | | ?????????????????????????????????????????????????? | | ?????????????????????????????????????????????????? | | ?????????????????????????????????????????????????? | | ?????????????????????????????????????????????????? | | ?????????????????????????????????????????????????? | | ?????????????????????????????????????????????????? | | ?????????????????????????????????????????????????? | | ?????????????????????????????????????????????????? | | ?????????????????????????????????????????????????? | +----------------------------------------------------+ Best States ------------- Heat Dissipation 34 Energy Generation 18 Energy Capacity 265 Matter Stores 300 Matter Capacity 300 Sight Range 20 Terrain Scan Density 10 Armor Coverage 225 Weapon Shielding 66 Evasion (%) 55 Targeting Accuracy 8 Recoil Reduction 2 Item Schematics ----------------- None Robot Schematics ------------------ None Fabricated ------------ S-27 Virus | x4 | -7/Factory | Preloaded Repaired ---------- Nothing Alien Tech Used ----------------- None Achievements -------------- None Challenges ------------ None Game ------ Seed NavigationRiotInjector Manual? 0 Play Time 00:20:34 Cumulative 34.3 hours Start 2025.07.16 @ 06:38:42 End 2025.07.16 @ 06:57:59 Sessions 1 Manual Loads 0 Difficulty Rogue Special Mode None Game No. 183 Rogue 183 Adventurer 0 Explorer 0 Win Type - Total 0 Types 0/0/0/0/0/0/0/0/0/0 Lore% 11 Gallery% 25 Achievement% 20 Wizard Run 0 Options --------- Layout 0 ASCII 0 Keyboard 0 Movement Arrows Keybinds 0 Fullscreen 2 Font 24/Cog Map View 76x50 Zoom Use 0% Tactical HUD 1 Map Filters NONE Filters NONE Steam 1 RUN: 6b95e05b-f288-4557-93a2-737bd0b3dd34